fUSD/lending_fUSD_20240225
["ID","MTS","AMOUNT","RATE_DAILY","PERIOD"]
[315173799,1708901434437,-150.0,0.0002377,2]
[315173801,1708901434445,-150.0,0.0002377,2]
[315173803,1708901434454,-150.0,0.0002377,2]
[315173805,1708901434463,-150.0,0.00023771,2]
[315173807,1708901434472,-150.0,0.00023776,2]
[315173808,1708901434481,-150.0,0.00023786,2]
[315173810,1708901434490,-150.0,0.00023793,2]
[315173813,1708901434499,-337.13181189,0.00023793,2]
[315173814,1708901434508,-320.14008466,0.00023798,2]
[315173816,1708901434517,-320.14008464,0.00023798,2]
[315173818,1708901434527,-320.14008464,0.00023798,2]
[315173820,1708901434536,-320.14008464,0.00023798,2]
[315173821,1708901434545,-320.14008464,0.00023798,2]
[315173822,1708901434555,-320.14008464,0.00023798,2]
[315173823,1708901434564,-320.14008464,0.00023798,2]
[315173824,1708901434573,-336.1290529,0.00023798,2]
[315173825,1708901434583,-320.14008464,0.00023798,2]
[315173826,1708901434592,-336.12905284,0.00023798,2]
[315173827,1708901434601,-320.14008464,0.00023798,2]
[315173828,1708901434610,-336.12905284,0.00023798,2]
[315173829,1708901434619,-336.12905284,0.00023798,2]
[315173830,1708901434628,-336.12905284,0.00023798,2]
[315173831,1708901434637,-336.12905284,0.00023798,2]
[315173832,1708901434647,-336.12905284,0.00023798,2]
[315173833,1708901434656,-336.12905284,0.00023798,2]
[315173834,1708901434666,-336.12905284,0.00023798,2]
[315173835,1708901434675,-150.0,0.00023801,2]
[315173836,1708901434686,-800.0,0.00023807,2]
[315173837,1708901434698,-800.0,0.00023808,2]
[315173838,1708901434707,-200.0,0.00023808,2]
[315173839,1708901434716,-500.0,0.00023808,2]
[315173840,1708901434726,-150.0,0.00023815,2]
[315173841,1708901434735,-162.92132155,0.00023818,2]
[315173842,1708901434744,-150.0,0.00023821,2]
[315173843,1708901434754,-150.0,0.00023836,2]
[315173844,1708901434764,-150.0,0.00023836,2]
[315173845,1708901434774,-150.0,0.0002384,2]
[315173846,1708901434784,-150.0,0.00023846,2]
[315173847,1708901434793,-150.0,0.00023847,2]
[315173848,1708901434802,-150.0,0.00023856,2]
[315173849,1708901434811,-150.0,0.00023859,2]
[315173850,1708901434820,-150.0,0.00023863,2]
[315173851,1708901435002,-150.0,0.00023865,2]
[315173852,1708901435012,-150.0,0.00023867,2]
[315173853,1708901435021,-300.0,0.00023869,2]
[315173854,1708901435031,-150.0,0.00023872,2]
[315173855,1708901435040,-548.2566071,0.00023872,2]
[315173856,1708901435049,-300.0,0.00023875,2]
[315173857,1708901435058,-153.32,0.00023879,2]
[315173858,1708901435067,-662.95,0.00023879,2]
[315173859,1708901435076,-150.0,0.00023881,2]
[315173860,1708901435085,-150.0,0.00023893,2]
[315173861,1708901435095,-300.0,0.00023895,2]
[315173862,1708901435103,-5000.0,0.00023899,2]
[315173863,1708901435113,-486.66392979,0.00023899,2]
[315173864,1708901435122,-1000.0,0.00023899,2]
[315173865,1708901435132,-486.66392975,0.00023899,2]
[315173866,1708901435141,-486.66392975,0.00023899,2]
[315173867,1708901435149,-486.66392975,0.00023899,2]
[315173868,1708901435158,-486.66392975,0.00023899,2]
[315173869,1708901435168,-229.667,0.00023899,2]
[315173870,1708901435176,-956.0,0.00023899,2]
[315173871,1708901435186,-1124.0,0.00023899,2]
[315173872,1708901435196,-311.0,0.00023899,2]
[315173873,1708901435204,-162.0,0.00023899,2]
[315173874,1708901435213,-866.624,0.00023899,2]
[315173875,1708901435222,-2076.549,0.00023899,2]
[315173876,1708901435231,-183.0,0.00023899,2]
[315173877,1708901435240,-152.56,0.00023899,2]
[315173878,1708901435249,-151.0,0.00023899,2]
[315173879,1708901435258,-1040.0,0.00023899,2]
[315173880,1708901435266,-486.66392975,0.00023899,2]
[315173881,1708901435276,-486.66392975,0.000239,2]
[315173882,1708901435286,-486.66392975,0.000239,2]
[315173883,1708901435295,-486.66392975,0.000239,2]
[315173884,1708901435304,-486.66392975,0.000239,2]
[315173885,1708901435314,-486.66392975,0.000239,2]
[315173886,1708901435323,-486.66392975,0.000239,2]
[315173887,1708901435333,-5642.66155571,0.000239,2]
[315173888,1708901435342,-201.9883,0.000239,2]
[315173889,1708901435351,-320.14008464,0.000239,2]
[315173890,1708901435361,-336.12905284,0.000239,2]
[315173891,1708901435370,-172.24503183,0.000239,2]
[315173892,1708901435379,-283.847585,0.000239,2]
[315173893,1708901435388,-150.0,0.00023917,2]
[315173894,1708901435397,-150.0,0.0002392,2]
[315173895,1708901435407,-150.0,0.00023931,2]
[315173896,1708901435416,-150.0,0.00023936,2]
[315173897,1708901435425,-150.0,0.00023936,2]
[315173898,1708901435435,-1500.0,0.00023938,2]
[315173899,1708901435444,-1500.0,0.00023939,2]
[315173900,1708901435453,-150.0,0.00023941,2]
[315173901,1708901435463,-150.0,0.00023945,2]
[315173902,1708901435472,-150.0,0.00023946,2]
[315173903,1708901435481,-1500.0,0.00023946,2]
[315173904,1708901435490,-1071.66,0.00023948,2]
[315173905,1708901435500,-150.0,0.00023959,2]
[315173906,1708901435509,-150.0,0.00023965,2]
[315173907,1708901435518,-150.0,0.00023966,2]
[315173908,1708901435527,-296.72,0.00023969,2]
[315173909,1708901435537,-700.0,0.0002397,2]
[315173910,1708901435546,-250610.59622305,0.0002397,2]
[315173911,1708901435555,-150.0,0.00023972,2]
[315173912,1708901435565,-1500.0,0.00023975,2]
[315173913,1708901435574,-1500.0,0.00023978,2]
[315173914,1708901435583,-409.92,0.00023979,2]
[315173915,1708901435593,-150.0,0.00023979,2]
[315173916,1708901435603,-3234.6423732,0.00023984,2]
[315173917,1708901435612,-2846.1982728,0.00023984,2]
[315173918,1708901435623,-2457.7541723,0.00023984,2]
[315173919,1708901435632,-2069.3100718,0.00023984,2]
[315173920,1708901435641,-1370.8855199,0.00023984,2]
[315173921,1708901435650,-1206.2576164,0.00023984,2]
[315173922,1708901435660,-1041.6297128,0.00023984,2]
[315173923,1708901435669,-877.0018093,0.00023984,2]
[315173924,1708901435680,-150.0,0.00023988,2]
[315173925,1708901435691,-150.0,0.00023988,2]
[315173926,1708901435701,-150.0,0.00023988,2]
[315173927,1708901435710,-3000.0,0.0002399,2]
[315173928,1708901435720,-300.0,0.0002399,2]
[315173929,1708901435729,-153.32,0.00023994,2]
[315173930,1708901435739,-662.95,0.00023994,2]
[315173931,1708901435749,-150.0,0.00023995,2]
[315173932,1708901435758,-150.0,0.00023995,2]
[315173933,1708901435768,-353.11823648,0.00023998,2]
[315173934,1708901435778,-307.17881214,0.00023998,2]
[315173935,1708901435788,-529.72754677,0.00023998,30]
[315173936,1708901435797,-1212.43659335,0.00023998,2]
[315173937,1708901435807,-590.4541271,0.00023998,2]
[315173938,1708901435817,-392.75414898,0.00023999,2]
[315173939,1708901435826,-85111.82644314,0.00023999,2]
[315173940,1708901436056,-663.2029264,0.00023999,2]
[315173941,1708901436068,-1857.80356833,0.00023999,2]
[315173942,1708901436079,-16293.96241936,0.00023999,2]
[315173943,1708901436091,-69608.57255898,0.00023999,2]
[315173944,1708901436101,-672.06,0.00023999,2]
[315173945,1708901436110,-273662.35484808,0.00024,30]
[315173946,1708901436127,-5913.35830796,0.00024,30]
[315173950,1708901437694,-294.36625467,0.00022788,2]
[315173951,1708901437714,-579.7818478,0.00022788,2]
[315173952,1708901437725,-260.31189753,0.00022788,2]
[315173953,1708901437735,-261.5,0.00023375,2]
[315173954,1708901437756,-1031.63810247,0.00024,4]
[315173955,1708901437832,-11219.31030727,0.00024,4]
[315173956,1708901437891,-7772.76301354,0.00024,4]
[315174192,1708901440304,-1432.02,0.00022521,2]
[315174199,1708901440360,-297.38731773,0.00022521,2]
[315174202,1708901440372,-456.05174502,0.00022521,2]
[315174207,1708901440416,-4093.3553002,0.00022521,2]
[315174210,1708901440432,-27285.0981,0.00022521,2]
[315174212,1708901440443,-1989.74701385,0.00022521,2]
[315174297,1708901441217,-50227.81319761,0.00022521,2]
[315174470,1708901442764,-327.25744183,0.00022521,2]
[315174507,1708901442933,-69573.0244676,0.00022521,2]
[315174520,1708901442990,-3124.25568334,0.00022521,2]
[315174523,1708901443002,-86193.98973282,0.00022521,2]
[315174526,1708901443012,-343.65988036,0.00023999,2]
[315174529,1708901443021,-1690.70404834,0.00024,4]
[315174536,1708901443045,-5186.15796392,0.00024,4]
[315174826,1708901445769,-360.39,0.00023178,2]
[315174827,1708901445779,-150.0,0.00023178,2]
[315174828,1708901445793,-150.0,0.00023178,2]
[315174829,1708901445803,-185.86242693,0.00024,4]
[315174830,1708901445822,-5769.12191616,0.00024,4]
[315174831,1708901445833,-103702.0,0.00024,4]
[315174832,1708901445935,-833.04272775,0.00024,4]
[315174833,1708901445992,-2834.10476065,0.00024,4]
[315174843,1708901493088,1080.03977769,0.0001,2]
[315174844,1708901498085,300.0,0.00020897,2]
[315174845,1708901504801,-500.0,0.00021948,2]
[315174846,1708901504822,-530.55182217,0.00021948,2]
[315174847,1708901522143,969.44817783,0.000155,2]
[315174848,1708901522164,536.56991929,0.000155,2]
[315174849,1708901575592,150.0,0.0002,2]
[315174850,1708901575617,150.0,0.0002,2]
[315174851,1708901575642,138.0,0.0002,2]
[315174852,1708901576243,-945.16808509,0.00022,2]
[315174853,1708901576266,-150.0,0.00022,2]
[315174854,1708901595547,240.42075946,0.000101,2]
[315174855,1708901608618,150.0,0.00022,2]
[315174856,1708901616785,250.0,0.00021315,2]
[315174858,1708901630586,301.11694445,0.000181,2]
[315174859,1708901658648,190.18,0.00022253,10]
[315174860,1708901690583,500.0,0.00021948,2]
[315174861,1708901698612,500.0,0.00021948,2]
[315174862,1708901765411,150.1927387,0.00021926,2]
[315174863,1708901784703,318.37,0.00021974,2]
[315174864,1708901813968,-61656.42996993,0.00022412,5]
[315174865,1708901815772,983.01,0.00020034,2]
[315174866,1708901832477,522.76736348,0.00021948,2]
[315174867,1708901903298,500.0,0.00021948,2]
[315174868,1708901914983,500.0,0.00021948,2]
[315174869,1708901920666,500.0,0.00021948,2]
[315174870,1708901921072,208.95410882,0.00021948,2]
[315174871,1708902118515,-208.0,0.00021464,2]
[315174872,1708902119135,-42.0,0.00021464,2]
[315174873,1708902119156,-108.0,0.00021491,2]
[315174874,1708902120013,-150.0,0.00021491,2]
[315174875,1708902120702,-42.0,0.00021491,2]
[315174876,1708902120722,-108.0,0.00021627,2]
[315174877,1708902121809,-150.0,0.00021627,2]
[315174878,1708902122287,-150.0,0.00021438,2]
[315174879,1708902123028,-16.19,0.00021438,2]
[315174880,1708902123048,-133.81,0.00021627,2]
[315174881,1708902124648,-150.0,0.00021627,2]
[315174882,1708902125275,-150.0,0.00021627,2]
[315174883,1708902125925,-150.0,0.00021627,2]
[315174884,1708902126323,-150.0,0.00021627,2]
[315174885,1708902127378,-150.0,0.00021627,2]
[315174886,1708902128055,-150.0,0.00021627,2]
[315174887,1708902128654,-150.0,0.00021627,2]
[315174888,1708902129347,-150.0,0.00021627,2]
[315174889,1708902129875,-150.0,0.00021627,2]
[315174890,1708902208380,205.32,0.00021519,10]
[315174891,1708902253555,150.0,0.00019576,2]
[315174892,1708902253576,294.47,0.00019576,2]
[315174893,1708902253606,489.38,0.00019576,2]
[315174897,1708902548107,-478.03096523,0.00021202,2]
[315174898,1708902548128,-689.86668017,0.00021203,2]
[315174899,1708902548149,-156.82292422,0.00021204,2]
[315174900,1708902548169,-615.82016421,0.00021222,2]
[315174901,1708902548190,-3576.87,0.00021225,2]
[315174902,1708902548210,-261.5,0.00021304,2]
[315174903,1708902548231,-156.47,0.00021358,2]
[315174908,1708902602027,150.0,0.00021358,2]
[315174909,1708902602221,196.02825457,0.00021358,2]
[315174912,1708902625481,150.0,0.00021313,2]
[315174929,1708902631929,-412.74688738,0.00021389,2]
[315174930,1708902631940,-65.28407785,0.00021389,2]
[315174931,1708902631950,-466.23975244,0.0002139,2]
[315174932,1708902631962,-1493.72024756,0.0002139,2]
[315174933,1708902631972,-156.82292421,0.00021392,2]
[315174934,1708902631980,-403.24,0.00021408,2]
[315174935,1708902631989,-150.0,0.00021526,2]
[315174936,1708902631999,-29.12304059,0.00021526,2]
[315174937,1708902632011,-270.87695941,0.00021526,2]
[315174938,1708902632020,-300.0,0.00021526,2]
[315174939,1708902632029,-223.30052411,0.00021527,2]
[315174940,1708902632041,-832.9,0.00021527,2]
[315174941,1708902632056,-301.48,0.00021527,2]
[315174942,1708902632067,-762.71,0.00021527,2]
[315174943,1708902632078,-440.0,0.00021527,2]
[315174944,1708902632090,-677.100004,0.00021527,2]
[315174945,1708902632102,-3487.95237189,0.00021527,2]
[315174946,1708902632111,-54753.2425901,0.00021528,2]
[315174947,1708902632121,-150.0,0.00021529,2]
[315174948,1708902632130,-522.45,0.00021529,2]
[315174949,1708902632140,-499.99,0.00021529,2]
[315174950,1708902632149,-156.82292421,0.00021581,2]
[315174951,1708902632159,-156.47,0.00021729,2]
[315174952,1708902632168,-156.82292421,0.00021769,2]
[315174953,1708902632177,-933.85,0.0002184,2]
[315174954,1708902632186,-171.18,0.00021918,2]
[315174955,1708902632195,-291.04589118,0.00021948,2]
[315174956,1708902632205,-500.0,0.00021948,2]
[315174957,1708902632214,-587.56244515,0.00021948,2]
[315174958,1708902632223,-500.0,0.00021948,2]
[315174959,1708902632232,-500.0,0.00021948,2]
[315174960,1708902632241,-500.0,0.00021948,2]
[315174961,1708902632250,-500.0,0.00021948,2]
[315174962,1708902632259,-500.0,0.00021948,2]
[315174963,1708902632269,-500.0,0.00021948,2]
[315174964,1708902632278,-501.53935581,0.00021948,2]
[315174965,1708902632288,-500.0,0.00021948,2]
[315174966,1708902632298,-166.0,0.00021948,2]
[315174967,1708902632307,-588.45380223,0.00021948,2]
[315174968,1708902632316,-500.0,0.00021948,2]
[315174970,1708902632326,-500.0,0.00021948,2]
[315174971,1708902632335,-500.0,0.00021948,2]
[315174972,1708902632344,-500.0,0.00021948,2]
[315174973,1708902632353,-500.0,0.00021948,2]
[315174974,1708902632362,-486.29319485,0.00021948,2]
[315174975,1708902632372,-156.82292421,0.00021958,2]
[315174976,1708902632381,-150.0,0.00022,2]
[315174977,1708902632390,-153.93,0.0002201,2]
[315174978,1708902632399,-206.0,0.00022034,2]
[315174979,1708902632409,-156.47,0.000221,2]
[315174980,1708902632418,-222.15919506,0.0002211,2]
[315174981,1708902632427,-153.93,0.00022126,2]
[315174982,1708902632436,-596.76,0.00022126,2]
[315174983,1708902632445,-1762.93,0.00022126,2]
[315174984,1708902632454,-156.82292421,0.00022146,2]
[315174985,1708902632463,-726.72762098,0.00022213,2]
[315174986,1708902632472,-153.93,0.00022241,2]
[315174987,1708902632481,-491.0,0.00022295,2]
[315174988,1708902632491,-1778.31174543,0.000223,2]
[315174989,1708902632500,-1549.96992501,0.000223,2]
[315174990,1708902632509,-500.0,0.00022309,2]
[315174991,1708902632519,-500.0,0.00022309,2]
[315174992,1708902632527,-500.0,0.00022309,2]
[315174993,1708902632537,-500.0,0.00022309,2]
[315174994,1708902632547,-500.0,0.00022309,2]
[315174995,1708902632556,-500.0,0.00022309,2]
[315174996,1708902632566,-500.0,0.00022309,2]
[315174997,1708902632575,-500.0,0.00022309,2]
[315174998,1708902632584,-793.89,0.00022309,2]
[315174999,1708902632593,-793.89,0.00022309,2]
[315175000,1708902632602,-500.0,0.00022309,2]
[315175001,1708902632612,-500.0,0.00022309,2]
[315175002,1708902632621,-500.0,0.00022309,2]
[315175003,1708902632629,-500.0,0.00022309,2]
[315175004,1708902632638,-460.69,0.00022309,2]
[315175005,1708902632648,-500.0,0.00022309,2]
[315175006,1708902632657,-500.0,0.00022309,2]
[315175007,1708902632667,-500.0,0.00022309,2]
[315175008,1708902632676,-500.0,0.00022309,2]
[315175009,1708902632685,-89120.64185591,0.0002231,2]
[315175010,1708902632710,-3056.59561292,0.0002231,2]
[315175011,1708902632721,-1411.59637272,0.0002231,2]
[315175012,1708902632733,-630.66738636,0.0002231,2]
[315175013,1708902632744,-1553.06,0.0002231,2]
[315175014,1708902632760,-1017.8,0.0002231,2]
[315175015,1708902632772,-1241.02500544,0.0002231,2]
[315175016,1708902632783,-989.62418365,0.0002231,2]
[315175017,1708902632794,-528.94457751,0.0002231,2]
[315175018,1708902632806,-22793.18493999,0.0002231,2]
[315175019,1708902632817,-2713.80862213,0.0002231,2]
[315175020,1708902632833,-30442.7750615,0.0002231,2]
[315175021,1708902632844,-5664.71930865,0.0002231,2]
[315175022,1708902632856,-1851.41971048,0.0002231,2]
[315175023,1708902632871,-472.04,0.0002231,2]
[315175024,1708902632883,-9276.62001971,0.0002231,2]
[315175025,1708902632894,-584.42934603,0.0002231,2]
[315175030,1708902638006,-206.0,0.00022034,2]
[315175031,1708902638016,-500.0,0.00022309,2]
[315175032,1708902638025,-500.0,0.00022309,2]
[315175033,1708902638034,-479737.438197,0.0002231,2]
[315175034,1708902638044,-726.72762094,0.00022311,2]
[315175035,1708902638057,-156.82292421,0.00022335,2]
[315175036,1708902638066,-153.93,0.00022357,2]
[315175037,1708902638075,-196.1,0.00022396,2]
[315175038,1708902638084,-500.0,0.00022409,2]
[315175039,1708902638094,-500.0,0.00022409,2]
[315175040,1708902638104,-500.0,0.00022409,2]
[315175041,1708902638113,-500.0,0.00022409,2]
[315175042,1708902638122,-793.89,0.00022409,2]
[315175043,1708902638132,-165.24523666,0.00022409,2]
[315175044,1708902638141,-500.0,0.00022409,2]
[315175045,1708902638150,-726.72762094,0.00022409,2]
[315175046,1708902638159,-119863.0499,0.0002241,2]
[315175047,1708902638168,-500.0,0.00022418,2]
[315175048,1708902638176,-481.67,0.00022418,2]
[315175049,1708902638185,-500.0,0.00022418,2]
[315175050,1708902638195,-500.0,0.00022418,2]
[315175051,1708902638204,-500.0,0.00022418,2]
[315175052,1708902638214,-500.0,0.00022418,2]
[315175053,1708902638224,-156.47,0.00022471,2]
[315175054,1708902638233,-153.93,0.00022473,2]
[315175055,1708902638245,-726.72762094,0.00022507,2]
[315175056,1708902638254,-500.0,0.00022509,2]
[315175057,1708902638264,-500.0,0.00022509,2]
[315175058,1708902638273,-500.0,0.00022509,2]
[315175059,1708902638283,-500.0,0.00022509,2]
[315175060,1708902638294,-500.0,0.00022509,2]
[315175061,1708902638303,-509.60861112,0.00022509,2]
[315175062,1708902638312,-500.0,0.00022509,2]
[315175063,1708902638322,-500.0,0.00022509,2]
[315175064,1708902638331,-500.0,0.00022509,2]
[315175065,1708902638341,-500.0,0.00022509,2]
[315175066,1708902638350,-297.1,0.00022509,2]
[315175067,1708902638361,-500.0,0.00022509,2]
[315175068,1708902638369,-500.0,0.00022509,2]
[315175069,1708902638378,-500.0,0.00022509,2]
[315175070,1708902638387,-500.0,0.00022509,2]
[315175071,1708902638396,-500.0,0.00022509,2]
[315175072,1708902638405,-500.0,0.00022509,2]
[315175073,1708902638414,-500.0,0.00022509,2]
[315175074,1708902638423,-500.0,0.00022509,2]
[315175075,1708902638432,-500.0,0.00022509,2]
[315175076,1708902638441,-296.05,0.00022509,2]
[315175077,1708902638450,-500.0,0.00022509,2]
[315175078,1708902638459,-500.0,0.00022509,2]
[315175079,1708902638469,-500.0,0.00022509,2]
[315175080,1708902638478,-500.0,0.00022509,2]
[315175081,1708902638487,-500.0,0.00022509,2]
[315175082,1708902638496,-500.0,0.00022509,2]
[315175083,1708902638505,-500.0,0.00022509,2]
[315175084,1708902638514,-587.95684643,0.00022509,2]
[315175085,1708902638523,-500.0,0.00022509,2]
[315175086,1708902638533,-500.0,0.00022509,2]
[315175087,1708902638543,-524.74527838,0.00022509,2]
[315175088,1708902638552,-500.0,0.00022509,2]
[315175089,1708902638561,-500.0,0.00022509,2]
[315175090,1708902638571,-500.0,0.00022509,2]
[315175091,1708902638580,-500.0,0.00022509,2]
[315175092,1708902638589,-500.0,0.00022509,2]
[315175093,1708902638598,-500.0,0.00022509,2]
[315175094,1708902638608,-500.0,0.00022509,2]
[315175095,1708902638617,-500.0,0.00022509,2]
[315175096,1708902638627,-500.0,0.00022509,2]
[315175097,1708902638636,-500.0,0.00022509,2]
[315175098,1708902638645,-500.0,0.00022509,2]
[315175099,1708902638654,-500.0,0.00022509,2]
[315175100,1708902638663,-500.0,0.00022509,2]
[315175101,1708902638672,-500.0,0.00022509,2]
[315175102,1708902638681,-500.0,0.00022509,2]
[315175103,1708902638690,-500.0,0.00022509,2]
[315175104,1708902638698,-500.0,0.00022509,2]
[315175105,1708902638708,-217.92671306,0.00022509,2]
[315175107,1708902638718,-500.0,0.00022509,2]
[315175109,1708902638727,-500.0,0.00022509,2]
[315175111,1708902638736,-500.0,0.00022509,2]
[315175113,1708902638745,-500.0,0.00022509,2]
[315175115,1708902638754,-500.0,0.00022509,2]
[315175117,1708902638763,-500.0,0.00022509,2]
[315175119,1708902638772,-500.0,0.00022509,2]
[315175121,1708902638781,-500.0,0.00022509,2]
[315175123,1708902638791,-500.0,0.00022509,2]
[315175125,1708902638800,-500.0,0.00022509,2]
[315175127,1708902638809,-500.0,0.00022509,2]
[315175130,1708902638819,-500.0,0.00022509,2]
[315175131,1708902638828,-500.0,0.00022509,2]
[315175133,1708902638837,-500.0,0.00022509,2]
[315175135,1708902638846,-500.0,0.00022509,2]
[315175137,1708902638855,-500.0,0.00022509,2]
[315175139,1708902638864,-500.0,0.00022509,2]
[315175141,1708902638873,-500.0,0.00022509,2]
[315175143,1708902638882,-500.0,0.00022509,2]
[315175145,1708902638892,-500.0,0.00022509,2]
[315175148,1708902638902,-500.0,0.00022509,2]
[315175150,1708902638911,-500.0,0.00022509,2]
[315175152,1708902638921,-500.0,0.00022509,2]
[315175154,1708902638930,-500.0,0.00022509,2]
[315175156,1708902638939,-500.0,0.00022509,2]
[315175158,1708902638948,-500.0,0.00022509,2]
[315175160,1708902638957,-500.0,0.00022509,2]
[315175162,1708902638966,-500.0,0.00022509,2]
[315175164,1708902638975,-500.0,0.00022509,2]
[315175166,1708902638984,-500.0,0.00022509,2]
[315175168,1708902638993,-500.0,0.00022509,2]
[315175170,1708902639002,-500.0,0.00022509,2]
[315175172,1708902639011,-500.0,0.00022509,2]
[315175174,1708902639020,-500.0,0.00022509,2]
[315175176,1708902639029,-500.0,0.00022509,2]
[315175178,1708902639039,-500.0,0.00022509,2]
[315175180,1708902639049,-500.0,0.00022509,2]
[315175182,1708902639060,-500.0,0.00022509,2]
[315175183,1708902639069,-500.0,0.00022509,2]
[315175185,1708902639079,-474.13,0.00022509,2]
[315175187,1708902639088,-500.0,0.00022509,2]
[315175189,1708902639099,-500.0,0.00022509,2]
[315175192,1708902639108,-500.0,0.00022509,2]
[315175194,1708902639118,-500.0,0.00022509,2]
[315175196,1708902639127,-500.0,0.00022509,2]
[315175198,1708902639137,-500.0,0.00022509,2]
[315175199,1708902639147,-500.0,0.00022509,2]
[315175201,1708902639156,-500.0,0.00022509,2]
[315175204,1708902639165,-180.85,0.00022509,2]
[315175206,1708902639174,-500.0,0.00022509,2]
[315175208,1708902639184,-500.0,0.00022509,2]
[315175210,1708902639194,-500.0,0.00022509,2]
[315175211,1708902639203,-193.86263835,0.0002252,2]
[315175213,1708902639212,-500.0,0.0002252,2]
[315175215,1708902639221,-500.0,0.0002252,2]
[315175218,1708902639230,-500.0,0.0002252,2]
[315175219,1708902639242,-500.0,0.0002252,2]
[315175221,1708902639252,-500.0,0.0002252,2]
[315175224,1708902639262,-314.66849773,0.0002252,2]
[315175225,1708902639270,-520.57670539,0.0002252,2]
[315175227,1708902639280,-500.0,0.0002252,2]
[315175229,1708902639290,-500.0,0.0002252,2]
[315175232,1708902639301,-500.0,0.0002252,2]
[315175234,1708902639310,-525.84441436,0.0002252,2]
[315175236,1708902639319,-375.21898823,0.0002252,2]
[315175238,1708902639328,-500.0,0.0002252,2]
[315175239,1708902639339,-316.93635229,0.0002252,2]
[315175241,1708902639348,-500.0,0.0002252,2]
[315175243,1708902639357,-500.0,0.0002252,2]
[315175245,1708902639366,-500.0,0.0002252,2]
[315175247,1708902639375,-500.0,0.0002252,2]
[315175249,1708902639384,-500.0,0.0002252,2]
[315175251,1708902639392,-500.0,0.0002252,2]
[315175253,1708902639401,-277.545,0.0002252,2]
[315175255,1708902639410,-500.0,0.0002252,2]
[315175257,1708902639419,-500.0,0.0002252,2]
[315175259,1708902639429,-500.0,0.0002252,2]
[315175261,1708902639438,-500.0,0.0002252,2]
[315175263,1708902639447,-500.0,0.0002252,2]
[315175265,1708902639456,-500.0,0.0002252,2]
[315175267,1708902639465,-500.0,0.0002252,2]
[315175269,1708902639475,-500.0,0.0002252,2]
[315175271,1708902639484,-500.0,0.0002252,2]
[315175273,1708902639494,-500.0,0.0002252,2]
[315175275,1708902639503,-500.0,0.0002252,2]
[315175277,1708902639513,-500.0,0.0002252,2]
[315175279,1708902639523,-500.0,0.0002252,2]
[315175281,1708902639532,-500.0,0.0002252,2]
[315175283,1708902639544,-500.0,0.0002252,2]
[315175285,1708902639554,-500.0,0.0002252,2]
[315175287,1708902639563,-500.0,0.0002252,2]
[315175289,1708902639572,-500.0,0.0002252,2]
[315175291,1708902639581,-279.4741419,0.0002252,2]
[315175293,1708902639590,-500.0,0.0002252,2]
[315175295,1708902639599,-500.0,0.0002252,2]
[315175296,1708902639608,-500.0,0.0002252,2]
[315175299,1708902639618,-500.0,0.0002252,2]
[315175301,1708902639627,-500.0,0.0002252,2]
[315175303,1708902639636,-218.86,0.0002252,2]
[315175304,1708902639645,-500.0,0.0002252,2]
[315175306,1708902639654,-500.0,0.0002252,2]